bitfinex/quotes_BTCUSD_20241014
["timestamp","ask_amount","ask_price","bid_price","bid_amount"]
[1728934962142,0.49961229,66072.0,66071.0,0.0809]
[1728934962367,0.51361229,66072.0,66071.0,0.0809]
[1728934962844,0.48561229,66072.0,66071.0,0.0809]
[1728934963141,0.48829191,66072.0,66071.0,0.0809]
[1728934963326,0.4995931,66072.0,66071.0,0.0809]
[1728934963617,0.45156114,66072.0,66071.0,0.0809]
[1728934963855,0.49959555,66072.0,66071.0,0.0809]
[1728934964057,0.49959553,66072.0,66071.0,0.0809]
[1728934964286,0.51159553,66072.0,66071.0,0.08140039]
[1728934965445,0.51159553,66072.0,66071.0,0.0809]
[1728934965686,0.36024553,66072.0,66071.0,0.08140039]
[1728934966150,0.51159553,66072.0,66071.0,0.0809]
[1728934966870,0.51159553,66072.0,66071.0,0.08140039]
[1728934967091,0.51161331,66072.0,66071.0,0.08140039]
[1728934967314,0.51161331,66072.0,66071.0,0.0809]
[1728934968260,0.36973571,66072.0,66071.0,0.0809]
[1728934968701,0.51161331,66072.0,66071.0,0.0809]
[1728934968926,0.52108571,66072.0,66071.0,0.0809]
[1728934970656,0.36973571,66072.0,66071.0,0.0809]
[1728934970901,0.36974348,66072.0,66071.0,0.0809]
[1728934971139,0.52109348,66072.0,66071.0,0.0809]
[1728934971997,0.52109348,66072.0,66071.0,0.082552]
[1728934972669,0.53918899,66072.0,66071.0,0.082552]
[1728934972897,0.52109348,66072.0,66071.0,0.082552]
[1728934973114,0.36974348,66072.0,66071.0,0.082552]
[1728934973330,0.51162103,66072.0,66071.0,0.082552]
[1728934973582,0.52109348,66072.0,66071.0,0.082552]
[1728934973798,0.36974348,66072.0,66071.0,0.082552]
[1728934974029,0.52109348,66072.0,66071.0,0.082552]
[1728934974778,0.35843942,66072.0,66071.0,0.082552]
[1728934975048,0.36974886,66072.0,66071.0,0.082552]
[1728934976551,0.36027626,66072.0,66071.0,0.082552]
[1728934977257,0.36037817,66072.0,66071.0,0.082552]
[1728934977473,0.36985077,66072.0,66071.0,0.082552]
[1728934978108,0.52120077,66072.0,66071.0,0.082552]
[1728934978413,0.52120077,66072.0,66071.0,0.001652]
[1728934978414,0.61362885,66072.0,66071.0,0.001652]
[1728934978635,0.179375,66061.0,66060.0,0.00165]
[1728934978868,0.23691272,66061.0,66060.0,0.00165]
[1728934979097,0.34578893,66061.0,66060.0,0.00165]
[1728934979322,0.2779339,66061.0,66060.0,0.00165]
[1728934979542,0.30150169,66061.0,66060.0,0.00165]
[1728934979766,0.45503016,66061.0,66060.0,0.00165]
[1728934980235,0.47669771,66061.0,66060.0,0.00165]
[1728934980454,0.43146237,66061.0,66060.0,0.00165]
[1728934980679,0.47670502,66061.0,66060.0,0.00165]
[1728934981341,0.49056146,66061.0,66060.0,0.00165]
[1728934981571,0.46903415,66061.0,66060.0,0.00165]
[1728934981801,0.49931672,66061.0,66060.0,0.00165]
[1728934982080,0.44546169,66061.0,66060.0,0.00165]
[1728934982508,0.30808669,66061.0,66060.0,0.00165]
[1728934982796,0.28008669,66061.0,66060.0,0.00165]
[1728934983031,0.41731881,66061.0,66060.0,0.00165]
[1728934983249,0.43147414,66061.0,66060.0,0.00165]
[1728934983482,0.26595585,66061.0,66060.0,0.00165]
[1728934983710,0.24784134,66061.0,66060.0,0.00165]
[1728934983949,0.41733094,66061.0,66060.0,0.00165]
[1728934984162,0.42221634,66061.0,66060.0,0.00165]
[1728934984454,0.45450673,66061.0,66060.0,0.00165]
[1728934984672,0.45450673,66061.0,66060.0,0.00215039]
[1728934985382,0.30313173,66061.0,66060.0,0.00215039]
[1728934986292,0.28895576,66061.0,66060.0,0.00215039]
[1728934987214,0.44033076,66061.0,66060.0,0.00165]
[1728934987421,0.45450449,66061.0,66060.0,0.50165]
[1728934988722,0.30312949,66061.0,66060.0,0.50165]
[1728934989214,0.28910767,66061.0,66060.0,0.50165]
[1728934989424,0.30328075,66061.0,66060.0,0.50165]
[1728934990821,0.30328075,66061.0,66060.0,0.50215039]
[1728934991034,0.30327919,66061.0,66060.0,0.50215039]
[1728934991249,0.30327939,66061.0,66060.0,0.50215039]
[1728934991462,0.30327905,66061.0,66060.0,0.50215039]
[1728934991689,0.30327905,66061.0,66060.0,0.50165]
[1728934992537,0.30327905,66061.0,66060.0,0.50215039]
[1728934993303,0.45465405,66061.0,66060.0,0.50165]
[1728934993523,0.30327905,66061.0,66060.0,0.50165]
[1728934995878,0.30410505,66061.0,66060.0,0.50165]
[1728934996919,0.30410743,66061.0,66060.0,0.50165]
[1728934997429,0.27179318,66061.0,66060.0,0.50165]
[1728934997544,0.47910971,66061.0,66060.0,0.50165]
[1728934997752,0.47910955,66061.0,66060.0,0.50165]
[1728934997930,0.45548575,66061.0,66060.0,0.50165]
[1728934998146,0.47910991,66061.0,66060.0,0.50165]
[1728934998344,0.50071353,66061.0,66060.0,0.50165]
[1728934999377,0.45548575,66061.0,66060.0,0.50165]
[1728934999557,0.52332742,66061.0,66060.0,0.50165]
[1728935000063,0.45548575,66061.0,66060.0,0.50165]
[1728935000273,0.73598035,66061.0,66060.0,0.50165]
[1728935000505,0.73598035,66061.0,66060.0,0.50215039]
[1728935001181,0.73598035,66061.0,66060.0,0.50165]
[1728935001389,0.6229109,66061.0,66060.0,0.50165]
[1728935002058,0.73630524,66061.0,66060.0,0.50165]
[1728935002275,0.6229109,66061.0,66060.0,0.50165]
[1728935002746,0.61345664,66061.0,66060.0,0.50215039]
[1728935002928,0.62293104,66061.0,66060.0,0.50215039]
[1728935003365,0.73631695,66061.0,66060.0,0.50215039]
[1728935004826,0.73632696,66061.0,66060.0,0.50215039]
[1728935005037,0.73631477,66061.0,66060.0,0.50215039]
[1728935005262,0.75901377,66061.0,66060.0,0.50215039]
[1728935005689,0.75901377,66061.0,66060.0,0.50165]
[1728935005888,0.64563126,66061.0,66060.0,0.50165]
[1728935006965,0.79927177,66061.0,66060.0,0.50165]
[1728935007280,0.77075061,66061.0,66060.0,0.498825]
[1728935007473,0.93185115,66061.0,66060.0,0.498825]
[1728935007692,0.93085115,66061.0,66060.0,0.498825]
[1728935007893,0.83188708,66061.0,66060.0,0.43059716]
[1728935008161,1.0152084,66061.0,66060.0,0.43059716]
[1728935008314,0.83288708,66061.0,66060.0,0.43224916]
[1728935008757,0.83190598,66061.0,66060.0,0.001652]
[1728935008979,0.92160733,66061.0,66060.0,0.001652]
[1728935009200,0.83197883,66061.0,66060.0,0.001652]
[1728935010104,0.67289839,66061.0,66060.0,0.001652]
[1728935010317,0.6433768,66061.0,66060.0,0.001652]
[1728935011224,0.77127536,66061.0,66060.0,0.001652]
[1728935011381,0.75614147,66061.0,66060.0,0.001652]
[1728935012986,0.75612827,66061.0,66060.0,0.001652]
[1728935014441,0.75604874,66061.0,66060.0,0.001652]
[1728935016480,0.75604874,66061.0,66047.0,0.22761242]
[1728935016481,0.01,66048.0,66047.0,0.22761242]
[1728935016715,0.69532094,66048.0,66047.0,0.22761242]
[1728935016975,0.69532094,66048.0,66039.0,0.22926242]
[1728935016976,0.156411,66045.0,66039.0,0.22926242]
[1728935017184,0.86417353,66045.0,66039.0,0.22926242]
[1728935017404,0.72192401,66045.0,66039.0,0.22926242]
[1728935018812,0.72192401,66045.0,66039.0,0.00165]
[1728935019035,0.73592401,66045.0,66039.0,0.00165]
[1728935019260,0.74137983,66045.0,66039.0,0.00165]
[1728935019694,0.75537983,66045.0,66039.0,0.00165]
[1728935020601,0.76299327,66045.0,66039.0,0.00215039]
[1728935021043,0.76299327,66045.0,66043.0,0.00050039]
[1728935021282,0.74025834,66045.0,66039.0,0.00165]
[1728935021499,0.74025834,66045.0,66039.0,0.00215039]
[1728935021771,0.74025834,66045.0,66041.0,0.00050039]
[1728935022196,0.7326449,66045.0,66041.0,0.00050039]
[1728935022918,0.72218908,66045.0,66041.0,0.00050039]
[1728935023141,0.62279023,66045.0,66044.0,0.07995]
[1728935023359,0.62279023,66045.0,66044.0,0.08045039]
[1728935023581,0.36487046,66045.0,66044.0,0.07995]
[1728935023822,0.4328105,66045.0,66044.0,0.07995]
[1728935024106,0.4790809,66045.0,66044.0,0.07995]
[1728935024292,0.49451589,66045.0,66044.0,0.07995]
[1728935024523,0.42657585,66045.0,66044.0,0.07995]
[1728935024982,0.42657585,66045.0,66044.0,0.08045039]
[1728935025265,0.39230586,66045.0,66044.0,0.08045039]
[1728935025486,0.42457931,66045.0,66044.0,0.08045039]
[1728935025823,0.43857931,66045.0,66044.0,0.08045039]
[1728935026045,0.42657931,66045.0,66044.0,0.08045039]
[1728935026245,0.42357931,66045.0,66044.0,0.08045039]
[1728935026508,0.59077866,66045.0,66044.0,0.08045039]
[1728935026680,0.60477866,66045.0,66044.0,0.08045039]
[1728935027115,0.60478243,66045.0,66044.0,0.08045039]
[1728935027807,0.60477565,66045.0,66044.0,0.08045039]
[1728935028027,0.59377565,66045.0,66044.0,0.08045039]
[1728935028481,0.60477565,66045.0,66044.0,0.07995]
[1728935028712,0.59377565,66045.0,66044.0,0.07995]
[1728935028914,0.44763949,66045.0,66044.0,0.07995]
[1728935029162,0.40136228,66045.0,66044.0,0.07995]
[1728935029378,0.44765564,66045.0,66044.0,0.07995]
[1728935029604,0.61484546,66045.0,66044.0,0.07995]
[1728935029818,0.72902486,66045.0,66044.0,0.07995]
[1728935030043,0.61484546,66045.0,66044.0,0.07995]
[1728935031171,0.63844319,66045.0,66044.0,0.07995]
[1728935033231,0.52496028,66045.0,66044.0,0.08045039]
[1728935033466,0.61490225,66045.0,66044.0,0.08045039]
[1728935034190,0.70548392,66045.0,66044.0,0.08045039]
[1728935034351,0.61490225,66045.0,66044.0,0.08045039]
[1728935034578,0.70548392,66045.0,66044.0,0.07995]
[1728935034788,0.70548392,66045.0,66044.0,0.077552]
[1728935035370,0.44771243,66045.0,66044.0,0.07805239]
[1728935035584,0.51565344,66045.0,66044.0,0.07805239]
[1728935035785,0.53927661,66045.0,66044.0,0.07805239]
[1728935036050,0.36896561,66045.0,66044.0,0.07805239]
[1728935036295,0.36004064,66045.0,66044.0,0.07805239]
[1728935036512,0.29209963,66045.0,66044.0,0.07805239]
[1728935036729,0.26848132,66045.0,66044.0,0.07805239]
[1728935037148,0.29211051,66045.0,66044.0,0.07805239]
[1728935037371,0.22217186,66045.0,66044.0,0.07805239]
[1728935037597,0.29215582,66045.0,66044.0,0.07805239]
[1728935038968,0.36011264,66045.0,66044.0,0.07805239]
[1728935041195,0.10081424,66045.0,66044.0,0.08269657]
[1728935041409,0.07320502,66045.0,66044.0,0.36271057]
[1728935041632,0.0618719,66045.0,66044.0,0.36271057]
[1728935041917,0.09060909,66055.0,66044.0,0.36271057]
[1728935041918,0.00947458,66050.0,66049.0,0.00514457]
[1728935042128,0.22843842,66059.0,66058.0,0.00514457]
[1728935042433,0.22843842,66059.0,66058.0,0.00504457]
[1728935042434,0.01216113,66059.0,66058.0,0.00504457]
[1728935042616,0.01216113,66059.0,66058.0,0.00514457]
[1728935042823,0.01216113,66059.0,66058.0,0.50514457]
[1728935043036,0.000826,66059.0,66058.0,0.50514457]
[1728935044031,0.000826,66059.0,66058.0,0.68118019]
[1728935044717,0.003826,66059.0,66058.0,0.68118019]
[1728935045391,0.003826,66059.0,66058.0,0.68318019]
[1728935046568,0.000826,66059.0,66058.0,0.68318019]
[1728935047467,0.001826,66059.0,66058.0,0.85921581]
[1728935047729,0.001826,66059.0,66058.0,1.21499781]
[1728935047966,0.00010191,66072.0,66060.0,0.35502157]
[1728935048212,0.00010191,66072.0,66071.0,0.15649657]
[1728935048430,0.00010191,66072.0,66071.0,0.53103219]
[1728935049277,0.00010191,66072.0,66071.0,0.54095219]
[1728935049496,0.22761242,66089.0,66086.0,0.3790798]
[1728935049724,0.22761242,66089.0,66086.0,0.37958019]
[1728935049955,0.22761242,66096.0,66086.0,0.37958019]
[1728935050188,0.151298,66095.0,66086.0,0.20354457]
[1728935050403,0.151298,66095.0,66086.0,0.70354457]
[1728935050620,0.151295,66096.0,66086.0,0.70354457]
[1728935050912,0.151297,66095.0,66086.0,0.70354457]
[1728935051122,0.307586,66097.0,66086.0,0.70354457]
[1728935051574,0.009826,66087.0,66086.0,0.70454457]
[1728935051803,0.015826,66087.0,66086.0,0.70554457]
[1728935053465,0.015826,66087.0,66086.0,0.70564457]
[1728935056349,0.015826,66087.0,66086.0,0.85696157]
[1728935057675,0.006826,66087.0,66086.0,0.85596157]
[1728935057881,0.006826,66087.0,66086.0,0.85696157]
[1728935057882,0.012826,66087.0,66086.0,0.85696157]
[1728935058566,0.000826,66087.0,66086.0,0.85496157]
[1728935058801,0.003826,66087.0,66086.0,0.85496157]
[1728935059024,0.000826,66087.0,66086.0,0.85496157]
[1728935059462,0.001826,66087.0,66086.0,0.86296157]
[1728935059688,0.001826,66087.0,66086.0,0.86696157]
[1728935065645,0.001826,66087.0,66086.0,0.87196157]
[1728935066821,0.001826,66087.0,66086.0,1.05789207]
[1728935067051,0.22761242,66106.0,66105.0,0.00050039]
[1728935067280,0.22761242,66106.0,66102.0,0.08014418]
[1728935067281,0.27367014,66106.0,66102.0,0.08014418]
[1728935067495,0.100825,66112.0,66104.0,0.17653601]
[1728935067496,0.04605772,66105.0,66104.0,0.17653601]
[1728935068695,0.15352847,66111.0,66110.0,0.00050039]
[1728935068805,0.22307604,66111.0,66110.0,0.00050039]
[1728935069041,0.05734321,66111.0,66110.0,0.00050039]
[1728935069224,0.0808196,66111.0,66110.0,0.00050039]
[1728935069440,0.05735068,66111.0,66110.0,0.00050039]
[1728935069661,0.0808196,66111.0,66110.0,0.00050039]
[1728935070126,0.0808196,66111.0,66110.0,0.00150039]
[1728935070127,0.0878196,66111.0,66110.0,0.00150039]
[1728935070353,0.0808196,66111.0,66110.0,0.00050039]
[1728935070578,0.06435068,66111.0,66110.0,0.00150039]
[1728935071689,0.06535068,66111.0,66110.0,0.00150039]
[1728935071896,0.06435068,66111.0,66110.0,0.00150039]
[1728935072102,0.05735068,66111.0,66110.0,0.00050039]
[1728935072330,0.06535068,66111.0,66110.0,0.00050039]
[1728935072534,0.06135068,66111.0,66110.0,0.00050039]
[1728935072741,0.06235068,66111.0,66110.0,0.00050039]
[1728935075318,0.06235068,66111.0,66110.0,0.22811281]
[1728935075546,0.06235068,66111.0,66110.0,0.00050039]
[1728935075763,0.06235068,66111.0,66110.0,0.11940039]
[1728935075990,0.06235068,66111.0,66110.0,0.20170039]
[1728935076811,0.06235068,66111.0,66110.0,0.35296339]
[1728935077478,0.0804402,66111.0,66110.0,0.20170039]
[1728935078163,0.0804402,66111.0,66110.0,0.35296339]
[1728935078383,0.0804402,66111.0,66110.0,0.2012]
[1728935078590,0.0804402,66111.0,66110.0,0.11940039]
[1728935078950,0.0804402,66111.0,66110.0,0.00050039]
[1728935079157,0.0804402,66111.0,66110.0,0.17603562]
[1728935081429,0.0812652,66111.0,66110.0,0.17603562]
[1728935082515,0.0812652,66111.0,66109.0,0.17603562]
[1728935082754,0.05735068,66110.0,66109.0,0.17603562]
[1728935084256,0.0754596,66110.0,66109.0,0.17603562]
[1728935084473,0.07563081,66110.0,66109.0,0.17603562]
[1728935085993,0.07963081,66110.0,66109.0,0.17603562]
[1728935086285,0.09378287,66110.0,66109.0,0.17603562]
[1728935086903,0.07963081,66110.0,66109.0,0.17603562]
[1728935087041,0.07563081,66110.0,66109.0,0.17603562]
[1728935087243,0.0897857,66110.0,66109.0,0.17603562]
[1728935087772,0.07963081,66110.0,66109.0,0.17603562]
[1728935088490,0.03338147,66110.0,66109.0,0.17903562]
[1728935088595,0.07971592,66110.0,66109.0,0.17903562]
[1728935089165,0.07571592,66110.0,66109.0,0.17903562]
[1728935089378,0.07671592,66110.0,66109.0,0.17903562]
[1728935089595,0.000825,66111.0,66109.0,0.43797124]
[1728935089791,0.000825,66111.0,66110.0,0.27178778]
[1728935090545,0.000825,66111.0,66110.0,0.4478234]
[1728935090921,0.000825,66111.0,66110.0,0.268763]
[1728935091132,0.000825,66111.0,66110.0,0.27478766]
[1728935092628,0.001825,66111.0,66110.0,0.27478766]
[1728935099179,0.001825,66111.0,66110.0,0.77478766]
[1728935099387,0.001825,66111.0,66110.0,0.771763]
[1728935099813,0.0244936,66111.0,66110.0,0.771763]
[1728935100468,0.03396128,66111.0,66110.0,0.771763]
[1728935100662,0.03396128,66111.0,66110.0,0.6205]
[1728935101209,0.03396128,66111.0,66110.0,0.771763]
[1728935101659,0.04813164,66111.0,66110.0,0.771763]
[1728935101892,0.04813164,66111.0,66110.0,0.99937542]
[1728935102131,0.0386665,66111.0,66110.0,0.771763]
[1728935103045,0.03866963,66111.0,66110.0,0.771763]
[1728935103354,0.03866963,66111.0,66110.0,0.503]
[1728935103355,0.03867204,66111.0,66110.0,0.503]
[1728935103504,0.04813718,66111.0,66110.0,0.503]
[1728935103716,0.04813718,66111.0,66110.0,0.654263]
[1728935103915,0.03867204,66111.0,66110.0,0.654263]
[1728935104132,0.04813705,66111.0,66110.0,0.654263]
[1728935104370,0.03867204,66111.0,66110.0,0.654263]
[1728935105037,0.03867204,66111.0,66110.0,0.503]
[1728935105906,0.03867204,66111.0,66110.0,0.654263]
[1728935106836,0.03867913,66111.0,66110.0,0.654263]
[1728935107115,0.01599966,66111.0,66110.0,0.654263]
[1728935107756,0.03867915,66111.0,66110.0,0.654263]
[1728935108013,0.03867915,66111.0,66110.0,0.783863]
[1728935108240,0.03867915,66111.0,66110.0,0.881683]
[1728935108241,0.001825,66111.0,66110.0,0.881683]
[1728935108883,0.000825,66111.0,66110.0,0.881683]
[1728935109301,0.076425,66111.0,66110.0,0.881683]
[1728935109518,0.077425,66111.0,66110.0,0.878683]
[1728935109950,0.076425,66111.0,66110.0,0.880683]
[1728935110391,0.076425,66111.0,66110.0,0.878683]
[1728935110848,0.077425,66111.0,66110.0,0.890683]
[1728935111060,0.077425,66111.0,66110.0,0.878683]
[1728935111184,0.076425,66111.0,66110.0,0.878683]
[1728935111405,0.077425,66111.0,66110.0,0.887683]
[1728935111612,0.077425,66111.0,66110.0,0.897683]
[1728935112027,0.076425,66111.0,66110.0,0.888683]
[1728935112482,0.077425,66111.0,66110.0,0.896683]
[1728935112705,0.077425,66111.0,66110.0,0.886683]
[1728935112922,0.077425,66111.0,66110.0,0.878683]
[1728935112923,0.076425,66111.0,66110.0,0.878683]
[1728935114033,0.077425,66111.0,66110.0,0.890683]
[1728935114505,0.078425,66111.0,66110.0,0.900683]
[1728935114877,0.077425,66111.0,66110.0,1.04421147]
[1728935115107,0.076425,66111.0,66110.0,1.03421147]
[1728935115571,0.076425,66111.0,66110.0,1.03221147]
[1728935115796,0.077425,66111.0,66110.0,1.04321147]
[1728935116256,0.078425,66111.0,66110.0,1.05721147]
[1728935116918,0.078425,66111.0,66110.0,1.05886147]
[1728935117129,0.078425,66111.0,66110.0,1.06086147]
[1728935117360,0.078425,66111.0,66110.0,1.16086147]
[1728935117590,0.078425,66111.0,66110.0,1.33689709]
[1728935117846,0.000825,66118.0,66117.0,0.367167]
[1728935118081,0.000825,66118.0,66117.0,0.97276671]
[1728935118975,0.000825,66118.0,66117.0,0.97676671]
[1728935119422,0.001825,66118.0,66117.0,0.98476671]
[1728935119646,0.001825,66118.0,66117.0,0.98276671]
[1728935119889,0.001825,66118.0,66117.0,0.82999627]
[1728935120114,0.001825,66118.0,66117.0,1.32999627]
[1728935124080,0.001825,66118.0,66117.0,1.1764678]
[1728935125135,0.001825,66118.0,66117.0,1.55760869]
[1728935125340,0.001825,66118.0,66117.0,1.32999627]
[1728935125771,0.001825,66118.0,66117.0,1.33199627]
[1728935125991,0.001825,66118.0,66117.0,1.73564431]
[1728935126203,0.001825,66118.0,66117.0,1.50803189]
[1728935126622,0.000825,66118.0,66117.0,1.49603189]
[1728935127050,0.001825,66118.0,66117.0,1.51203189]
[1728935127521,0.000825,66118.0,66117.0,1.49603189]
[1728935127959,0.001825,66118.0,66117.0,1.34599627]
[1728935128393,0.001825,66118.0,66117.0,1.33199627]
[1728935129037,0.001825,66118.0,66117.0,1.31799627]
[1728935129038,0.000825,66118.0,66117.0,1.31799627]
[1728935129247,0.000825,66118.0,66117.0,1.33199627]
[1728935129676,0.000825,66118.0,66117.0,1.31799627]
[1728935129891,0.000825,66118.0,66117.0,1.33399627]
[1728935130135,0.000825,66118.0,66117.0,1.52403189]
[1728935130397,0.000826,66128.0,66123.0,0.01492]
[1728935130594,0.000826,66128.0,66123.0,0.59571709]
[1728935131891,0.000826,66128.0,66123.0,0.59279709]
[1728935132125,0.07957554,66127.0,66123.0,0.158233]
[1728935132418,0.07957554,66127.0,66123.0,0.007]
[1728935132603,0.07957554,66127.0,66123.0,0.158233]
[1728935132604,0.01454628,66124.0,66123.0,0.158233]
[1728935133016,0.01454628,66124.0,66123.0,0.151233]
[1728935133266,0.01454628,66124.0,66123.0,0.164233]
[1728935133482,0.01454628,66124.0,66123.0,0.151233]
[1728935133693,0.01454628,66124.0,66123.0,0.160233]
[1728935133951,0.01454628,66124.0,66123.0,0.171233]
[1728935134206,0.01454628,66124.0,66123.0,0.151233]
[1728935134381,0.01454628,66124.0,66123.0,0.162233]
[1728935134621,0.01454628,66124.0,66123.0,0.169233]
[1728935136054,0.01454628,66124.0,66123.0,0.018]
[1728935136266,0.03719753,66124.0,66123.0,0.018]
[1728935136482,0.16419753,66124.0,66123.0,0.018]
[1728935136689,0.40185451,66124.0,66123.0,0.018]
[1728935136930,0.40185451,66124.0,66123.0,0.011]
[1728935136931,1.29087928,66124.0,66123.0,0.011]
[1728935137151,0.151242,66119.0,66118.0,0.22761242]
[1728935137382,0.151244,66118.0,66117.0,0.5]
[1728935137608,0.42889025,66118.0,66117.0,0.5]
[1728935137887,0.47417736,66118.0,66117.0,0.5]
[1728935140065,0.47817736,66118.0,66117.0,0.501]
[1728935140309,0.43389233,66118.0,66117.0,0.501]
[1728935140537,0.42889233,66118.0,66117.0,0.5]
[1728935140753,0.42989233,66118.0,66117.0,0.5]
[1728935140969,0.50178754,66118.0,66117.0,0.501]
[1728935141179,0.50078754,66118.0,66117.0,0.501]
[1728935141394,0.60101159,66118.0,66117.0,0.501]
[1728935141598,0.61911648,66118.0,66117.0,0.501]
[1728935141808,0.50179966,66118.0,66117.0,0.501]
[1728935142018,0.50176425,66118.0,66117.0,0.501]
[1728935142224,0.49776425,66118.0,66117.0,0.5]
[1728935142426,0.49775863,66118.0,66117.0,0.5]
[1728935142627,0.42985692,66118.0,66117.0,0.5]
[1728935143056,0.29385848,66118.0,66117.0,0.5]
[1728935143281,0.07471292,66118.0,66117.0,0.5]
[1728935143502,0.1105094,66118.0,66117.0,0.5]
[1728935143733,0.1075094,66118.0,66117.0,0.5]
[1728935143938,0.06524719,66118.0,66117.0,0.501]
[1728935144584,0.13314875,66118.0,66117.0,0.501]
[1728935145439,0.25874617,66118.0,66117.0,0.5]
[1728935146289,0.09635793,66118.0,66117.0,0.501]
[1728935146978,0.61685909,66118.0,66117.0,0.5]
[1728935147202,0.6749714,66118.0,66117.0,0.501]
[1728935147413,0.67494463,66118.0,66117.0,0.501]
[1728935148291,0.67194463,66118.0,66117.0,0.5]
[1728935148716,0.67494463,66118.0,66117.0,0.501]
[1728935149153,0.67194463,66118.0,66117.0,0.5]
[1728935149372,0.49769587,66118.0,66117.0,0.5]
[1728935149566,0.31032108,66118.0,66117.0,0.501]
[1728935149759,0.34609585,66118.0,66117.0,0.501]
[1728935149967,0.34309585,66118.0,66117.0,0.5]
[1728935150175,0.35256158,66118.0,66117.0,0.501]
[1728935150378,0.35256158,66118.0,66117.0,0.502]
[1728935150379,0.35556158,66118.0,66117.0,0.502]
[1728935150583,0.34609585,66118.0,66117.0,0.501]
[1728935151433,0.34309585,66118.0,66117.0,0.5]
[1728935151632,0.34309585,66118.0,66117.0,0.50165]
[1728935151838,0.35556158,66118.0,66117.0,0.50265]
[1728935152055,0.30085535,66118.0,66117.0,0.50265]
[1728935152283,0.50679805,66118.0,66117.0,0.50265]
[1728935152504,0.46156504,66118.0,66117.0,0.50265]
[1728935153155,0.50671208,66118.0,66117.0,0.50265]
[1728935153555,0.50671272,66118.0,66117.0,0.50265]
[1728935153766,0.55233352,66118.0,66117.0,0.50265]
[1728935153982,0.72251226,66118.0,66117.0,0.50265]
[1728935154422,0.82160619,66118.0,66117.0,0.50265]
[1728935154657,0.79600685,66118.0,66117.0,0.50165]
[1728935154868,0.79900685,66118.0,66117.0,0.50265]
[1728935155295,0.6290634,66118.0,66117.0,0.50165]
[1728935155717,0.6320634,66118.0,66117.0,0.50265]
[1728935156154,0.69688487,66118.0,66117.0,0.50165]
[1728935156598,0.69988487,66118.0,66117.0,0.50365]
[1728935156828,0.63957242,66118.0,66117.0,0.50365]
[1728935157044,0.69988409,66118.0,66117.0,0.50365]
[1728935157248,0.69988409,66118.0,66117.0,0.50222285]
[1728935157456,0.63206262,66118.0,66117.0,0.50222285]
[1728935157668,1.50692991,66118.0,66117.0,0.50322285]
[1728935157883,1.50392991,66118.0,66117.0,0.50222285]
[1728935158146,1.52654016,66118.0,66117.0,0.50222285]
[1728935158370,1.52654016,66118.0,66117.0,0.50264985]
[1728935158587,1.52954016,66118.0,66117.0,0.50364985]
[1728935159218,1.52654016,66118.0,66117.0,0.50264985]
[1728935159463,1.52954016,66118.0,66117.0,0.50364985]
[1728935159876,1.52954016,66118.0,66117.0,0.50264985]
[1728935160275,1.52954016,66118.0,66117.0,0.50364985]
[1728935160749,1.57477451,66118.0,66117.0,0.50264985]
[1728935160980,1.61795355,66118.0,66117.0,0.50264985]
[1728935161213,1.55013964,66118.0,66117.0,0.50264985]
[1728935161407,1.52957648,66118.0,66117.0,0.50364985]
[1728935161615,1.55315166,66118.0,66117.0,0.50364985]
[1728935161992,1.55315166,66118.0,66117.0,0.50164985]
[1728935161993,1.59437366,66118.0,66117.0,0.50164985]
[1728935162198,1.59737016,66118.0,66117.0,0.50264985]
[1728935162418,1.52957648,66118.0,66117.0,0.50364985]
[1728935162787,1.59737016,66118.0,66117.0,0.50364985]
[1728935163261,1.59736484,66118.0,66117.0,0.50364985]
[1728935163463,1.59755265,66118.0,66117.0,0.50364985]
[1728935163610,1.56657071,66118.0,66117.0,0.50364985]
[1728935163844,1.63435868,66118.0,66117.0,0.50364985]
[1728935164053,1.63135868,66118.0,66117.0,0.50264985]
[1728935164216,1.63135868,66118.0,66117.0,0.50364985]
[1728935164217,1.56657032,66118.0,66117.0,0.50364985]
[1728935165004,1.56657032,66118.0,66117.0,0.50264985]
[1728935165195,1.56657032,66118.0,66117.0,0.50164985]
[1728935165196,1.56357032,66118.0,66117.0,0.50164985]
[1728935165712,1.56657032,66118.0,66117.0,0.50264985]
[1728935165969,1.41532632,66118.0,66117.0,0.50264985]
[1728935166177,1.43707032,66118.0,66117.0,0.50264985]
[1728935166349,1.48225977,66118.0,66117.0,0.50264985]
[1728935167309,1.47925977,66118.0,66117.0,0.50164985]
[1728935167933,1.44245335,66118.0,66117.0,0.50164985]
[1728935168148,1.44545335,66118.0,66117.0,0.50264985]
[1728935169269,1.40045634,66118.0,66117.0,0.50264985]
[1728935169923,1.29720606,66118.0,66117.0,0.50264985]
[1728935170140,1.28773976,66118.0,66117.0,0.50264985]
[1728935170616,1.73744433,66118.0,66117.0,0.50264985]
[1728935170838,1.73744433,66118.0,66110.0,0.00165]
[1728935170839,0.16826,66111.0,66110.0,0.00165]
[1728935171205,0.81214552,66111.0,66110.0,0.00165]
[1728935171258,0.85850196,66111.0,66110.0,0.00165]
[1728935171502,0.96175455,66111.0,66110.0,0.00165]
[1728935171729,0.97688886,66111.0,66110.0,0.00165]
[1728935171931,0.96175455,66111.0,66110.0,0.00165]
[1728935172193,0.96175455,66111.0,66110.0,0.50165]
[1728935172423,0.96175455,66111.0,66109.0,0.00165]
[1728935172424,0.117,66110.0,66109.0,0.00165]
[1728935172636,0.91966827,66110.0,66109.0,0.00165]
[1728935173311,0.402179,66103.0,66102.0,0.00165]
[1728935173506,0.79796452,66103.0,66102.0,0.00165]
[1728935173812,0.79796452,66103.0,66087.0,0.22761242]
[1728935173813,0.479297,66095.0,66087.0,0.22761242]
[1728935174008,0.91240227,66095.0,66087.0,0.22761242]
[1728935174428,0.246213,66088.0,66087.0,0.22761242]
[1728935174672,0.61278311,66088.0,66087.0,0.22761242]
[1728935175092,0.151334,66079.0,66072.0,0.001652]
[1728935175330,0.32786247,66079.0,66072.0,0.001652]
[1728935175524,0.22476677,66079.0,66072.0,0.001652]
[1728935175804,0.151339,66077.0,66076.0,0.22761242]
[1728935176040,0.20171905,66077.0,66072.0,0.001652]
[1728935176262,0.0141876,66076.0,66072.0,0.001652]
[1728935176470,0.0141876,66075.0,66072.0,0.001652]
[1728935176688,0.0141876,66074.0,66072.0,0.001652]
[1728935176906,0.0141876,66073.0,66072.0,0.001652]
[1728935179097,0.01910861,66073.0,66072.0,0.001652]
[1728935179542,0.005,66073.0,66072.0,0.001652]
[1728935179761,0.01910407,66073.0,66072.0,0.001652]